[Event "Croatian Team Cup Final 2022"]
[Site "Vodice"]
[Date "2022.05.21"]
[Round "5.3"]
[White "Palac, Mladen"]
[Black "Jovanic, Ognjen"]
[Result "1-0"]
[ECO "C00"]
[WhiteElo "2505"]
[BlackElo "2509"]
[Annotator "TA"]
[PlyCount "69"]
[EventDate "2022.05.18"]
[EventType "team-tourn"]
[EventCountry "CRO"]
[SourceTitle "playchess.com"]
[Source "ChessBase"]
[SourceQuality "1"]
[TimeControl "40/5400+30:1800+30"]

{[%evp 15,69,0,0,0,14,0,0,0,0,0,2,0,0,0,1,0,0,0,0,0,0,0,0,0,0,0,4,6,6,-6,0,0,0,0,0,-3,0,10,0,0,10,10,233,232,246,241,259,254,745,711,701,701,1397,1397,1631,1454]} 1. e4 {[%emt 0:01:37]} e5 {[%emt 0:00:29]} 2. Nf3 {[%emt 0:00:26]} Nc6 {[%emt 0:00:35]} 3. Bb5 {[%emt 0:01:38]} Nf6 {[%emt 0:00:42]} 4. d3 {[%emt 0:00:41]} Bc5 {[%emt 0:00:56]} 5. c3 {[%emt 0:00:18]} O-O {[%emt 0:01:55]} 6. O-O {[%emt 0:00:18]} d5 {[%emt 0:01:30]} 7. Nbd2 {[%emt 0:01:09]} dxe4 {[%emt 0:08:19]} 8. dxe4 {[%emt 0:01:18]} Qe7 {[%emt 0:02:05]} 9. b4 {[%emt 0:03:30] C00: French: Unusual White 2nd moves.} Bb6 {[%emt 0:04:31]} 10. a4 {[%emt 0:14:58] [#] Black must now prevent a5.} a5 $146 {[%emt 0:03:33]} ({Predecessor:} 10... a6 11. Be2 Nb8 12. Qc2 Bg4 13. Nc4 Bxf3 14. Bxf3 Ba7 15. Bg5 h6 16. Bh4 Nbd7 {1-0 (40) Rakhmangulova,A (2174)-Lomakina,A (2009) Kharkov 2021}) 11. Bxc6 {[%emt 0:15:06] The position is equal.} bxc6 {[%emt 0:00:03]} 12. Ba3 {[%emt 0:00:02]} Rd8 {[%emt 0:05:41]} 13. bxa5 {[%emt 0:24:44]} Bc5 {[%emt 0:00:07]} 14. Bxc5 {[%emt 0:00:03]} Qxc5 {[%emt 0:00:05]} 15. Nb3 {[%emt 0:00:02][%csl LRc5,LRd8]} Qe7 {[%emt 0:00:21]} 16. Qc2 {[%emt 0:00:38]} Be6 {[%emt 0:04:07]} 17. c4 {[%emt 0:04:31]} Nd7 {[%emt 0:00:35]} 18. Qc3 {[%emt 0:01:48]} Rdb8 {[%emt 0:02:50]} 19. Rfc1 {[%emt 0:09:17]} Rb4 {[%emt 0:08:55]} 20. Nfd2 {[%emt 0:03:15]} c5 {[%emt 0:05:37]} 21. Rc2 {[%emt 0:05:49]} Qd6 {[%emt 0:01:06]} 22. h3 {[%emt 0:00:50]} Qc6 {[%emt 0:03:01]} 23. Rca2 {[%emt 0:00:30]} h6 {[%emt 0:00:22]} 24. Nc1 {[%emt 0:00:58]} Rxa5 {[%emt 0:19:06]} 25. Qc2 {[%emt 0:02:15]} ({Reject} 25. Nd3 Rbxa4 26. Qxa5 (26. Nxe5 $2 Nxe5 27. Rxa4 Rxa4 $19) 26... Rxa5 27. Rxa5 Qd6 $15) 25... f6 {[%emt 0:04:30]} 26. Nd3 {[%emt 0:00:12]} Rb8 {[%emt 0:00:16]} 27. Nb3 {[%emt 0:01:27]} Ra7 {[%emt 0:00:10]} 28. f3 {[%emt 0:00:36]} Rab7 $2 {[%emt 0:09:49] This move loses the game for Black.} (28... Qd6 $11) 29. Na5 $1 $18 {[%emt 0:00:13][%csl LRb7,LRc6]} Qd6 {[%emt 0:01:31]} 30. Nxb7 {[%emt 0:00:04] Pair of Knights!} Qd4+ {[%emt 0:00:02]} 31. Kh1 {[%emt 0:02:31]} Bxc4 $2 {[%emt 0:00:15] [#]} (31... Rxb7 32. Ra3 Nb8) 32. Nbxc5 $1 {[%emt 0:01:18] White is clearly winning.} Nxc5 {[%emt 0:03:08]} 33. Nxc5 {[%emt 0:00:03][%cal Oa1d1] Strongly threatening Rd1!} Qxc5 {[%emt 0:00:05]} 34. Rc1 {[%emt 0:00:37]} Rb4 {[%emt 0:00:02]} 35. Rb2 {[%emt 0:00:14] Weighted Error Value: White=0.02 (flawless) /Black=0.26 (precise)} 1-0

[Event "Croatian Team Cup Final 2022"]
[Site "Vodice"]
[Date "2022.05.21"]
[Round "5.4"]
[White "Srbis, Jurica"]
[Black "Zelcic, Robert"]
[Result "1/2-1/2"]
[ECO "B11"]
[WhiteElo "2451"]
[BlackElo "2497"]
[Annotator "TA"]
[PlyCount "85"]
[EventDate "2022.05.18"]
[EventType "team-tourn"]
[EventCountry "CRO"]
[SourceTitle "playchess.com"]
[Source "ChessBase"]
[SourceQuality "1"]
[TimeControl "40/5400+30:1800+30"]

{[%evp 10,85,18,8,17,27,16,12,22,11,13,18,37,41,60,60,40,14,25,2,6,4,16,17,107,107,106,98,135,141,145,138,125,134,122,131,128,124,143,141,147,141,173,134,154,159,255,114,250,144,144,98,216,216,216,87,226,269,231,268,313,298,181,0,0,0,0,0,0,0,0,0,0,0,0,0,0,0]} 1. e4 {[%emt 0:00:05]} c6 {[%emt 0:00:05]} 2. Nc3 {[%emt 0:00:11]} d5 {[%emt 0:00:04]} 3. Nf3 {[%emt 0:00:06]} Bg4 {[%emt 0:00:05]} 4. h3 {[%emt 0:00:05]} Bxf3 {[%emt 0:00:03]} 5. Qxf3 {[%emt 0:00:05]} e6 {[%emt 0:00:14]} 6. Be2 {[%emt 0:00:14]} Bc5 {[%emt 0:06:33] B11: Caro-Kann: Two Knights Variation.} 7. O-O {[%emt 0:02:25]} Nd7 {[%emt 0:00:02]} 8. exd5 {[%emt 0:01:02]} cxd5 {[%emt 0:13:17]} 9. Rd1 {[%emt 0:00:10]} Ngf6 {[%emt 0:11:00]} 10. d4 {[%emt 0:01:13]} Bd6 {[%emt 0:00:16] [#]} 11. Nb5 $146 {[%emt 0:00:45]} ({Predecessor:} 11. Bd3 O-O 12. Bg5 Qb6 13. h4 a6 14. Rab1 Kh8 15. Ne2 Rae8 16. Qh3 Bb8 17. h5 {0-1 (50) Maenhout,T (2394)-Crevatin,L (2160) Guimaraes 2021}) 11... Be7 {[%emt 0:01:39]} 12. c4 {[%emt 0:00:08]} O-O {[%emt 0:03:57]} 13. Bf4 {[%emt 0:05:47]} dxc4 {[%emt 0:05:57]} 14. Qxb7 {[%emt 0:03:43]} Nd5 {[%emt 0:01:31]} 15. Bg3 $36 {[%emt 0:01:37][%mdl 2048] Black is under pressure.} a6 {[%emt 0:12:56]} 16. Nc3 {[%emt 0:05:27]} N7b6 {[%emt 0:07:47]} (16... Qc8 $11 17. Qxc8 Raxc8) 17. Nxd5 $16 {[%emt 0:03:53] White is more active.} Nxd5 {[%emt 0:00:02]} 18. Bxc4 {[%emt 0:01:43]} Bd6 {[%emt 0:05:23]} 19. Bxd5 {[%emt 0:03:25]} ({Weaker is} 19. Bxa6 Bxg3 20. fxg3 Rb8 $17) 19... exd5 {[%emt 0:00:01]} 20. Qxd5 {[%emt 0:00:32]} Bxg3 {[%emt 0:00:02]} 21. Qxd8 {[%emt 0:00:07]} Bxf2+ {[%emt 0:00:05]} 22. Kxf2 {[%emt 0:00:02]} Rfxd8 {[%emt 0:00:06][%mdl 4096] Endgame KRR-KRR} 23. Rac1 {[%emt 0:02:05]} Rab8 {[%emt 0:00:28]} 24. b3 {[%emt 0:04:48][%cal Bb2b3,Bb3b4][%mdl 32]} Rb6 {[%emt 0:00:29]} 25. d5 {[%emt 0:13:59]} h5 {[%emt 0:00:31]} 26. Rd4 {[%emt 0:09:59]} Rg6 {[%emt 0:06:57]} 27. b4 {[%emt 0:00:00]} Rdd6 {[%emt 0:00:27]} (27... Kf8 $16 28. Rc5 Ke7 29. Re4+ Kd7) 28. g4 {[%emt 0:00:00]} (28. Rc8+ $18 Kh7 29. a4) 28... hxg4 {[%emt 0:01:51]} (28... Kf8 $16 {was worth a try.} 29. Ke3 (29. gxh5 Rg5 $16) 29... hxg4) 29. hxg4 {[%emt 0:01:21]} (29. Rc8+ $18 Kh7 30. hxg4) 29... Kf8 {[%emt 0:03:43]} 30. a4 {[%emt 0:09:38]} (30. Kf3 $142) 30... Ke7 {[%emt 0:00:24] [#]} (30... Rg5 $16) 31. Ke3 $1 $18 {[%emt 0:02:41]} Rg5 {[%emt 0:02:16]} 32. Rc5 {[%emt 0:01:37]} (32. Rc7+ $18 {is more deadly.} Ke8 33. Rc5) 32... Kd7 {[%emt 0:02:34]} (32... f5 $16 {was necessary.}) 33. Rf4 {[%emt 0:01:12]} f6 {[%emt 0:04:43]} 34. Kd4 {[%emt 0:00:16]} Rb6 {[%emt 0:01:16]} 35. b5 {[%emt 0:02:07]} axb5 {[%emt 0:00:14]} 36. Rxb5 {[%emt 0:03:14]} (36. axb5 $18 Rb7 37. Kc4) 36... Rxb5 $11 {[%emt 0:00:25] The position is equal.} 37. axb5 $18 {[%emt 0:00:01] [#] aiming for Kc5. KR-KR} Kd6 {[%emt 0:00:01]} 38. Kc4 {[%emt 0:02:46] b6 is the strong threat.} Rxd5 {[%emt 0:00:07]} 39. Rd4 {[%emt 0:00:02]} Rxd4+ {[%emt 0:00:08]} 40. Kxd4 {[%emt 0:00:00]} g6 {[%emt 0:00:00]} 41. b6 {[%emt 0:00:09]} Kc6 {[%emt 0:00:19]} 42. b7 {[%emt 0:00:02]} Kxb7 {[%emt 0:00:05] ( -> ...Kc6)} 43. Kd5 $1 {[%emt 0:00:01] Black defended with fortune.  Weighted Error Value: White=0.20 (precise) /Black=0.28 (precise)} 1/2-1/2

[Event "Croatian Team Cup Final 2022"]
[Site "Vodice"]
[Date "2022.05.21"]
[Round "5.5"]
[White "Martinovic, Sasa"]
[Black "Lalic, Bogdan"]
[Result "1-0"]
[ECO "D94"]
[WhiteElo "2552"]
[BlackElo "2411"]
[Annotator "TA"]
[PlyCount "109"]
[EventDate "2022.05.18"]
[EventType "team-tourn"]
[EventCountry "CRO"]
[SourceTitle "playchess.com"]
[Source "ChessBase"]
[SourceQuality "1"]
[TimeControl "40/5400+30:1800+30"]

{[%evp 15,109,30,39,0,33,18,54,24,35,29,46,50,77,74,104,110,97,97,127,127,127,124,127,115,151,158,153,153,154,155,154,155,155,155,208,198,221,161,209,184,187,188,155,166,150,102,102,102,102,58,68,34,135,132,126,116,115,102,102,91,101,102,96,94,94,77,72,72,72,28,61,28,28,28,28,8,8,8,151,149,5634,5634,5634,5634,5613,5613,5535,5507,5390,5337,2816,1456,29982,29983,29983,29983]} 1. d4 {[%emt 0:00:01]} d5 {[%emt 0:07:20]} 2. Nf3 {[%emt 0:00:06]} Nf6 {[%emt 0:00:33]} 3. c4 {[%emt 0:00:04]} c6 {[%emt 0:00:06]} 4. e3 {[%emt 0:00:09]} g6 {[%emt 0:00:25]} 5. Nc3 {[%emt 0:00:29]} Bg7 {[%emt 0:00:07]} 6. Be2 {[%emt 0:00:05]} O-O {[%emt 0:00:12]} 7. O-O {[%emt 0:00:05]} a6 {[%emt 0:00:14] is recently more successful than 7...Bg4.} 8. a4 {[%emt 0:01:56]} a5 {[%emt 0:00:16]} 9. Bd2 {[%emt 0:02:04] D94: Grünfeld: 4 Nf3 Bg7 5 e3.} Na6 {[%emt 0:02:07]} 10. cxd5 {[%emt 0:00:58]} cxd5 {[%emt 0:00:31]} 11. Qb3 {[%emt 0:03:26] White is slightly better.} Nb4 {[%emt 0:10:44]} 12. Rfc1 {[%emt 0:04:35]} Nc6 {[%emt 0:03:46] [#]} 13. Ne5 $5 $146 {[%emt 0:10:14][%mdl 8] An interesting novelty.} ({Predecessor:} 13. h3 Rb8 14. Ne5 Nxe5 15. dxe5 Ne4 16. Nxe4 dxe4 17. Bc3 b6 18. Bc4 e6 19. Rd1 {0-1 (65) Pranavananda,V (2166)-Bhakti,K (2292) Mumbai 2017}) 13... Nxe5 {[%emt 0:14:48]} 14. dxe5 {[%emt 0:00:04]} Ne4 {[%emt 0:03:11]} 15. Nxe4 {[%emt 0:04:10]} dxe4 {[%emt 0:00:06]} 16. Bc3 {[%emt 0:00:25][%cal Bd2c3,Bc3d4,Bd4b6][%mdl 32]} Qc7 {[%emt 0:08:39]} 17. Bd4 {[%emt 0:05:18]} Qb8 {[%emt 0:00:05]} 18. Rc5 {[%emt 0:04:01]} Bd7 {[%emt 0:00:39]} 19. Rac1 {[%emt 0:03:30]} b6 {[%emt 0:00:59]} 20. Rc7 {[%emt 0:02:44]} Ra7 {[%emt 0:00:09]} 21. Qxb6 {[%emt 0:10:27] 0x0.001df507c8abdp-1022s more active pieces. The black rooks are badly placed.} (21. Bxb6 $6 Rxc7 22. Rxc7 Rd8 $14) 21... Qxb6 {[%emt 0:05:29]} 22. Bxb6 {[%emt 0:00:04]} Rxc7 {[%emt 0:00:07]} 23. Rxc7 {[%emt 0:01:53]} (23. Bxc7 Bxa4 24. Rc5 (24. Bxa5 Bxe5 25. Rc4 Bd7 $14) 24... Bb3 $16) 23... Bxa4 {[%emt 0:00:05]} 24. Rxe7 {[%emt 0:05:31]} (24. Bxa5 Bxe5 25. Rxe7 Re8 26. Rxe8+ Bxe8 $16) 24... Rb8 {[%emt 0:03:34]} (24... Rc8 $16 25. Rc7 (25. Bxa5 $2 Rc1+ 26. Bf1 Bb5 $19) 25... Rxc7 26. Bxc7 Bc6) 25. Bd4 $18 {[%emt 0:01:01]} (25. Bxa5 $2 Rxb2 26. Bf1 Rb1 $19) 25... Bb3 {[%emt 0:00:09]} 26. Ba6 {[%emt 0:08:29] Against Rc8} a4 {[%emt 0:04:50]} (26... Bf8 {was necessary.} 27. Rb7 Rxb7 28. Bxb7 Bc2) 27. h4 {[%emt 0:01:18]} Bf8 {[%emt 0:06:44]} 28. Ra7 {[%emt 0:01:17]} Bd5 {[%emt 0:01:00]} 29. Be2 {[%emt 0:07:30]} Ra8 {[%emt 0:00:48]} 30. Rxa8 {[%emt 0:08:01]} ({White should try} 30. Rc7) 30... Bxa8 $16 {[%emt 0:00:06][%mdl 4096] Endgame KBB-KBB} 31. Bc4 {[%emt 0:00:02] aiming for e6.} Be7 {[%emt 0:01:11]} 32. h5 {[%emt 0:01:36]} gxh5 {[%emt 0:00:41]} 33. Kh2 {[%emt 0:01:26]} a3 {[%emt 0:02:29]} (33... Bc6 $14) 34. bxa3 {[%emt 0:01:02]} Bxa3 {[%emt 0:00:03]} 35. Kg3 {[%emt 0:01:51]} Be7 {[%emt 0:07:04]} 36. Kf4 {[%emt 0:00:34] Hoping for e6.} Bh4 {[%emt 0:01:33]} 37. g3 {[%emt 0:01:05]} Be7 {[%emt 0:00:06]} 38. e6 {[%emt 0:08:17]} fxe6 {[%emt 0:00:06]} 39. Bxe6+ {[%emt 0:00:17]} Kf8 {[%emt 0:00:07]} 40. Bf5 {[%emt 0:00:00][%csl LRe4,LRh7]} h4 {[%emt 0:00:00]} 41. Be5 {[%emt 0:18:17] Black must now prevent g4.} ({Wrong is} 41. Bxh7 $2 h3 42. Bxe4 Bxe4 43. Kxe4 h2 $19) ({Much worse is} 41. Bxe4 Bd6+ 42. Kf5 (42. Be5 Bxe5+ 43. Kxe5 Bxe4 $17) 42... Bxe4+ 43. Kxe4 hxg3 44. fxg3 Bxg3 $11) 41... hxg3 {[%emt 0:23:37]} 42. fxg3 {[%emt 0:00:17]} h5 {[%emt 0:00:48]} 43. Bxe4 {[%emt 0:01:03]} (43. Bg6 $5 {[%cal Rg6h5]} h4 44. g4 $16 (44. Bxe4 Bxe4 45. Kxe4 hxg3 $11)) 43... Bxe4 {[%emt 0:00:06]} 44. Kxe4 $14 {[%emt 0:00:02] KB-KB} Kf7 {[%emt 0:00:13]} 45. Kf5 {[%emt 0:01:28]} h4 {[%emt 0:00:10]} 46. g4 {[%emt 0:00:20] Black should prevent Ke4.} Bc5 {[%emt 0:00:06]} (46... h3 $1 $11) 47. Bf4 {[%emt 0:03:31]} h3 $2 {[%emt 0:01:06][%mdl 8192] [#] This costs Black the game.} (47... Kg7 $16 48. Ke4 Kf6) 48. Ke4 $1 $18 {[%emt 0:00:05]} Bb4 {[%emt 0:01:34]} 49. Kf3 {[%emt 0:01:32]} Be1 {[%emt 0:00:06]} 50. Ke2 {[%emt 0:03:52]} Bh4 {[%emt 0:00:07] [#]} 51. Kf1 $1 {[%emt 0:00:13]} Ke6 {[%emt 0:00:25]} 52. e4 {[%emt 0:00:44]} Bf6 {[%emt 0:06:20]} 53. Kg1 {[%emt 0:00:10]} Be5 {[%emt 0:00:01]} 54. Bxe5 {[%emt 0:00:18]} Kxe5 {[%emt 0:00:05]} 55. g5 {[%emt 0:00:48] Weighted Error Value: White=0.13 (very precise) /Black=0.41} 1-0

[Event "Croatian Team Cup Final 2022"]
[Site "Vodice"]
[Date "2022.05.21"]
[Round "5.6"]
[White "Zaja, Ivan"]
[Black "Livaic, Leon"]
[Result "0-1"]
[ECO "D35"]
[WhiteElo "2449"]
[BlackElo "2562"]
[Annotator "TA"]
[PlyCount "96"]
[EventDate "2022.05.18"]
[EventType "team-tourn"]
[EventCountry "CRO"]
[SourceTitle "playchess.com"]
[Source "ChessBase"]
[SourceQuality "1"]
[TimeControl "40/5400+30:1800+30"]

{[%evp 10,96,14,17,37,35,33,27,25,13,19,12,11,-42,-18,-57,-26,-44,-41,-60,-69,-65,-64,-58,-52,-78,-48,-47,-41,-48,-27,-31,-11,-38,-9,-14,-18,-23,-32,-38,-40,-51,-32,-120,-118,-134,-112,-154,-158,-162,-161,-152,-152,-147,-127,-118,-118,-133,-126,-154,-102,-110,-110,-123,-125,-163,-156,-156,-156,-448,-208,-204,-170,-237,-233,-231,-228,-240,-247,-361,-335,-716,-714,-712,-685,-678,-657,-1146,-1125]} 1. d4 {[%emt 0:00:08]} Nf6 {[%emt 0:00:17]} 2. c4 {[%emt 0:00:17]} e6 {[%emt 0:00:05]} 3. Nc3 {[%emt 0:01:16]} d5 {[%emt 0:00:34]} 4. cxd5 {[%emt 0:00:40]} exd5 {[%emt 0:00:05]} 5. Bg5 {[%emt 0:00:13][%cal Bc1g5,Bg5h4,Bh4g3][%mdl 32]} c6 {[%emt 0:00:06]} 6. e3 {[%emt 0:00:30]} Be6 {[%emt 0:01:06] D35: Queen's Gambit Declined: Exchange Variation.} 7. Bd3 {[%emt 0:01:53]} Nbd7 {[%emt 0:00:13]} 8. Nge2 {[%emt 0:01:12]} h6 {[%emt 0:00:07] White has an edge.} 9. Bh4 {[%emt 0:01:38]} g5 {[%emt 0:00:18] Against Nf4} 10. Bg3 {[%emt 0:00:05]} Nh5 $1 {[%emt 0:00:09] [#]} 11. f4 $146 {[%emt 0:02:10]} (11. a3 $1 $11) ({Predecessor:} 11. Qc2 Nxg3 12. Nxg3 h5 13. O-O-O Qf6 14. Nf5 O-O-O 15. h3 h4 16. Kb1 Kb8 17. Rhf1 {1-0 (47) Salem,A (2690)-Mastrovasilis,D (2627) Warsaw 2021}) 11... Ndf6 {[%emt 0:17:35]} 12. fxg5 {[%emt 0:18:58]} hxg5 {[%emt 0:02:01]} (12... Ng4 {is more complex.} 13. Nf4 Nxg3 14. hxg3 Qxg5 15. Qf3 O-O-O) 13. Be5 {[%emt 0:02:10]} Bd6 {[%emt 0:00:51]} 14. Bxd6 {[%emt 0:06:20]} Qxd6 {[%emt 0:00:05]} 15. Qd2 {[%emt 0:00:14]} O-O-O {[%emt 0:01:59] Black is more active.} 16. h3 {[%emt 0:11:12]} g4 {[%emt 0:05:13]} 17. O-O-O {[%emt 0:07:09]} gxh3 {[%emt 0:05:32]} 18. gxh3 {[%emt 0:00:05]} Rdg8 {[%emt 0:00:24]} 19. Rdf1 {[%emt 0:00:52]} Rg2 {[%emt 0:02:28]} 20. Qe1 {[%emt 0:00:40][%cal Of1f6]} Qf8 {[%emt 0:12:50]} 21. Rf2 {[%emt 0:08:54]} Rgg8 {[%emt 0:06:12]} 22. Rf3 {[%emt 0:07:30]} Qh6 {[%emt 0:08:30]} 23. Qh4 {[%emt 0:02:06]} Ne8 {[%emt 0:05:44]} 24. Rhf1 {[%emt 0:06:50]} Nd6 {[%emt 0:01:45]} 25. Qe7 {[%emt 0:00:50]} Bd7 {[%emt 0:08:28]} 26. Kd2 {[%emt 0:04:54]} ({Not} 26. Rxf7 $2 Nxf7 27. Rxf7 Qe6 28. Qxe6 Bxe6 $19) ({White should try} 26. Rf6 $15 Nxf6 27. Rxf6 Qxh3 28. Qxd6) 26... f5 $1 $17 {[%emt 0:04:15]} ({Inferior is} 26... Re8 27. Qh4 $15) 27. Qe5 {[%emt 0:06:01]} Rg2 {[%emt 0:03:32] Prevents Qh2.} 28. Qe7 {[%emt 0:03:59]} Rh7 {[%emt 0:02:54]} ({Stronger than} 28... Re8 29. Qh4 $17) 29. Qh4 {[%emt 0:00:07] [#]} Ng3 $1 {[%emt 0:01:40][%mdl 512] The board is on fire.} 30. Qxg3 {[%emt 0:00:19]} Rxg3 {[%emt 0:00:03]} 31. Rxg3 {[%emt 0:00:05]} Nc4+ {[%emt 0:05:05]} 32. Bxc4 {[%emt 0:00:35]} dxc4 {[%emt 0:00:03]} 33. Nf4 {[%emt 0:00:37]} b5 {[%emt 0:01:11]} 34. Rg6 {[%emt 0:02:18]} Qf8 {[%emt 0:00:21]} (34... Qh4 $142 35. a3 Re7) 35. Rfg1 {[%emt 0:01:44] Threatens to win with Rg8.} Qb4 {[%emt 0:00:10]} 36. Kc2 {[%emt 0:00:44]} Qe7 {[%emt 0:02:35]} 37. R6g3 {[%emt 0:01:43]} a5 {[%emt 0:01:38]} 38. Ng6 {[%emt 0:00:40]} Qd6 {[%emt 0:00:25]} 39. Ne5 $2 {[%emt 0:00:21] This costs White the game.} (39. Nf4 $17 {might work better.}) 39... Re7 {[%emt 0:02:39]} (39... f4 $142 40. Rg8+ Kb7) 40. Rg6 {[%emt 0:00:00]} Re6 {[%emt 0:00:00]} 41. h4 {[%emt 0:03:49] [#]} (41. a4 {keeps fighting.}) 41... Rxg6 $1 $19 {[%emt 0:03:36]} 42. Rxg6 {[%emt 0:00:30]} Qe7 {[%emt 0:00:18] aiming for ...f4.} 43. h5 {[%emt 0:01:41] [#]} f4 $1 {[%emt 0:04:16][%cal Bf5f4,Bf4f3,Bf3f2][%mdl 32]} 44. e4 {[%emt 0:12:33] Prevents Bf5.} (44. exf4 $142 Bf5+ 45. Kd2 Bxg6 46. hxg6) 44... f3 {[%emt 0:01:45]} 45. Rg3 $2 {[%emt 0:04:23]} (45. Nxf3 b4 46. h6 bxc3 47. Ne5 cxb2 48. Kxb2) 45... f2 {[%emt 0:02:25] Black is clearly winning.} 46. Rf3 {[%emt 0:00:04]} Qh4 {[%emt 0:01:03] And now ...Qh2 would win.} 47. Rf8+ {[%emt 0:00:36]} Kc7 {[%emt 0:00:09]} 48. Rf7 {[%emt 0:00:29]} Qh2 {[%emt 0:00:37] Weighted Error Value: White=0.48/Black=0.17 (very precise)} 0-1

[Event "Croatian Team Cup Final 2022"]
[Site "Vodice"]
[Date "2022.05.21"]
[Round "5.7"]
[White "Cvitan, Ognjen"]
[Black "Kovacevic, Blazimir"]
[Result "1/2-1/2"]
[ECO "C01"]
[WhiteElo "2454"]
[BlackElo "2401"]
[Annotator "TA"]
[PlyCount "42"]
[EventDate "2022.05.18"]
[EventType "team-tourn"]
[EventCountry "CRO"]
[SourceTitle "playchess.com"]
[Source "ChessBase"]
[SourceQuality "1"]
[TimeControl "40/5400+30:1800+30"]

{[%evp 17,29,0,0,0,0,1,0,0,16,16,24,18,11,0]} 1. d4 {[%emt 0:01:12]} e6 {[%emt 0:00:21]} 2. e4 {[%emt 0:03:03]} d5 {[%emt 0:00:22]} 3. exd5 {[%emt 0:01:04]} exd5 {[%emt 0:00:06]} 4. Nf3 {[%emt 0:00:51]} Nc6 {[%emt 0:01:54]} 5. Bb5 {[%emt 0:03:13]} Bd6 {[%emt 0:00:47]} 6. c4 {[%emt 0:01:19]} dxc4 {[%emt 0:00:43]} 7. d5 {[%emt 0:02:44]} a6 {[%emt 0:00:05]} 8. Ba4 {[%emt 0:00:19]} b5 {[%emt 0:00:07]} 9. dxc6 {[%emt 0:00:25]} bxa4 {[%emt 0:00:05]} ({But not} 9... Qe7+ 10. Be3 bxa4 11. O-O $14) 10. O-O {[%emt 0:01:52] C01: French: Exchange Variation.} Ne7 {[%emt 0:00:28]} 11. Nbd2 {[%emt 0:02:37]} Be6 {[%emt 0:18:59]} 12. Qxa4 {[%emt 0:04:34]} Bd5 {[%emt 0:03:51]} 13. Nxc4 {[%emt 0:02:31]} O-O {[%emt 0:17:26]} 14. Nxd6 {[%emt 0:14:40]} Qxd6 {[%emt 0:00:26]} 15. Qf4 {[%emt 0:01:25] [#] A balanced but interesting game.  Weighted Error Value: White=0.00 (flawless) /Black=0.02 (flawless)} {Predecessor:} Qxc6 $146 16. Be3 Ng6 17. Qg3 Bxf3 18. Qxf3 Qxf3 19. gxf3 Rfb8 20. b3 a5 21. Rfc1 Rb7 {½-½ (60) Chatzieleftheriou,A (2258)-Siniauski,A (2233) Corum 2019} 1/2-1/2